bitfinex/quotes_ETHUSD_20250504
["timestamp","ask_amount","ask_price","bid_price","bid_amount"]
[1746388200246,6.9325,1833.2,1833.1,4.483]
[1746388200463,0.7997,1833.1,1832.9,9.92568314]
[1746388200666,0.7997,1833.1,1832.9,4.47]
[1746388201665,0.7997,1833.1,1832.9,9.92581031]
[1746388203244,6.14,1833.0,1832.9,9.92581031]
[1746388204367,6.50316705,1833.0,1832.9,9.92581031]
[1746388207682,6.50316705,1833.0,1832.9,4.47]
[1746388207975,6.50316705,1833.0,1832.9,9.92583501]
[1746388208579,6.50316705,1833.0,1832.9,11.80379374]
[1746388209152,6.50316705,1833.0,1832.9,9.92583501]
[1746388209360,6.50316705,1833.0,1832.9,4.47]
[1746388209760,7.26506705,1833.0,1832.9,4.47]
[1746388210266,7.99157376,1833.0,1832.9,4.47]
[1746388214561,13.44711113,1833.0,1832.9,4.47]
[1746388214758,5.45611562,1832.9,1832.5,5.45677585]
[1746388214994,7.28732912,1832.8,1832.5,9.92702266]
[1746388215658,7.28732912,1832.8,1832.6,5.45670781]
[1746388215995,7.28732912,1832.8,1832.6,12.79118304]
[1746388216195,7.28732912,1832.8,1832.6,7.33447523]
[1746388216567,6.49452912,1832.8,1832.7,5.4564304]
[1746388216766,6.49452912,1832.8,1832.7,7.33438913]
[1746388218579,6.49452912,1832.8,1832.7,5.4564304]
[1746388220705,6.49452912,1832.8,1832.6,7.33449271]
[1746388220872,6.49452912,1832.8,1832.6,14.59927869]
[1746388221204,6.49452912,1832.8,1832.7,5.4564304]
[1746388225720,6.49452912,1832.8,1832.7,7.33438913]
[1746388231523,6.49452912,1832.8,1832.6,7.33449854]
[1746388231826,6.66541863,1832.8,1832.6,7.33449854]
[1746388232892,7.44671863,1832.8,1832.6,7.33449854]
[1746388233618,7.44671863,1832.8,1832.5,11.80479083]
[1746388238322,6.14,1832.7,1832.5,11.80479083]
[1746388238621,0.52495295,1832.6,1832.5,4.47]
[1746388238799,6.14,1832.6,1832.4,4.471]
[1746388239001,0.52495295,1832.5,1832.4,4.471]
[1746388239192,6.66495295,1832.5,1832.4,4.471]
[1746388259387,12.12197887,1832.5,1832.4,4.471]
[1746388259687,14.20909132,1832.5,1832.4,4.471]
[1746388265190,14.20909132,1832.5,1832.1,11.8079902]
[1746388265392,12.91877887,1832.5,1832.1,11.8079902]
[1746388265990,5.45733296,1832.4,1832.1,6.34995873]
[1746388266289,0.51657843,1832.3,1832.1,6.34995873]
[1746388266486,5.45733296,1832.4,1832.1,6.34995873]
[1746388266689,0.51657843,1832.3,1832.1,4.472]
[1746388266897,0.8275,1832.3,1832.1,4.472]
[1746388267066,6.14,1832.2,1832.1,4.472]
[1746388267256,6.65657843,1832.2,1832.1,4.472]
[1746388268016,12.11449787,1832.2,1832.1,4.472]
[1746388268196,13.95446551,1832.2,1832.1,4.472]
[1746388268997,8.49654607,1832.2,1832.1,4.472]
[1746388269162,6.65657843,1832.2,1832.1,4.472]
[1746388274006,12.11449787,1832.2,1832.1,4.472]
[1746388277483,12.11449787,1832.2,1831.8,2.68085873]
[1746388277484,6.65657843,1832.2,1831.9,5.45881212]
[1746388278306,6.65657843,1832.2,1832.0,0.7975]
[1746388279919,6.65657843,1832.2,1831.9,6.25631212]
[1746388282221,6.65657843,1832.2,1831.8,12.60656873]
[1746388282222,12.11459657,1832.2,1831.8,12.60656873]
[1746388284627,12.11459657,1832.2,1831.8,18.06546726]
[1746388285124,12.11459657,1832.2,1831.8,12.60635726]
[1746388285793,12.11459657,1832.2,1831.8,12.60633245]
[1746388285993,12.11459657,1832.2,1831.8,19.87178076]
[1746388286230,6.65657843,1832.2,1831.9,5.4587861]
[1746388288133,12.11455874,1832.2,1831.8,14.4129802]
[1746388289334,12.11455874,1832.2,1831.8,14.41289914]
[1746388289503,6.65657843,1832.2,1831.8,14.41289704]
[1746388289904,12.11454552,1832.2,1831.8,12.60633823]
[1746388292032,0.8265,1832.1,1831.8,9.9308795]
[1746388292232,0.51199585,1832.0,1831.8,4.472]
[1746388294137,6.14,1831.9,1831.8,4.472]
[1746388294841,6.65199585,1831.9,1831.8,4.472]
[1746388295236,6.65199585,1831.9,1831.8,9.93111125]
[1746388295820,6.65199585,1831.9,1831.8,4.472]
[1746388302752,6.65199585,1831.9,1831.7,5.45926849]
[1746388303151,6.65199585,1831.9,1831.6,6.22562549]
[1746388303341,6.65199585,1831.9,1831.7,5.45939827]
[1746388306963,6.14,1831.9,1831.7,5.45939827]
[1746388307127,0.50772383,1831.8,1831.7,5.45939827]
[1746388307421,6.64772383,1831.8,1831.7,5.45939827]
[1746388308562,6.64772383,1831.8,1831.6,8.10358422]
[1746388309432,6.64772383,1831.8,1831.6,6.22562549]
[1746388310269,6.64772383,1831.8,1831.6,5.45962549]
[1746388311270,6.64772383,1831.8,1831.6,10.91911438]
[1746388311567,6.64772383,1831.8,1831.6,5.45948889]
[1746388313377,7.38831621,1831.8,1831.5,12.61108617]
[1746388313573,6.64772383,1831.8,1831.5,12.61108617]
[1746388314077,6.64772383,1831.8,1831.5,18.07086177]
[1746388314476,6.14,1831.7,1831.5,18.07086177]
[1746388314644,6.64368858,1831.7,1831.5,18.07086177]
[1746388314844,6.64368858,1831.7,1831.5,12.61103433]
[1746388319274,6.64368858,1831.7,1831.6,5.45970735]
[1746388319989,6.64368858,1831.7,1831.5,18.07082419]
[1746388320277,6.64368858,1831.7,1831.6,5.45970735]
[1746388321688,6.64368858,1831.7,1831.6,7.33766608]
[1746388321863,6.64368858,1831.7,1831.6,9.89635739]
[1746388323287,6.14,1831.7,1831.6,9.89635739]
[1746388323451,0.50294782,1831.7,1831.6,9.89635739]
[1746388323647,6.14,1831.9,1831.6,15.41065627]
[1746388323872,0.50294782,1831.8,1831.7,7.33736591]
[1746388327216,0.50294782,1831.8,1831.7,11.14355725]
[1746388327378,0.50294782,1831.8,1831.7,11.08896591]
[1746388327574,6.14,1831.9,1831.8,6.23111125]
[1746388327774,6.14,1831.9,1831.8,8.10906998]
[1746388328018,6.60167648,1831.9,1831.8,9.7659177]
[1746388329523,0.46167648,1831.9,1831.8,9.7659177]
[1746388329817,6.14,1832.1,1832.0,5.45851528]
[1746388339520,6.60346515,1832.1,1832.0,5.45851528]
[1746388357647,6.60346515,1832.1,1831.9,9.93061013]
[1746388358836,7.43586515,1832.1,1831.9,9.93061013]
[1746388360536,7.43586515,1832.1,1831.9,9.93060892]
[1746388362447,7.43586515,1832.1,1831.9,15.38922418]
[1746388362846,7.43586515,1832.1,1831.9,9.93060892]
[1746388364911,7.43586515,1832.1,1831.9,15.3892205]
[1746388365110,7.43586515,1832.1,1831.9,9.93060892]
[1746388366233,13.63770923,1832.1,1831.9,4.472]
[1746388366952,8.17945167,1832.1,1831.9,4.472]
[1746388370347,6.14,1832.0,1831.9,4.472]
[1746388370523,6.59927772,1832.0,1831.9,4.472]
[1746388375959,6.59927772,1832.0,1831.8,5.4590558]
[1746388376271,6.14,1831.9,1831.8,5.4590558]
[1746388377008,6.59927772,1831.9,1831.8,5.4590558]
[1746388379459,6.59927772,1831.9,1831.8,7.33701453]
[1746388380535,6.59927772,1831.9,1831.8,9.90474559]
[1746388380735,6.59927772,1831.9,1831.8,9.85015616]
[1746388381431,6.59927772,1831.9,1831.8,9.90474158]
[1746388384081,6.59927772,1831.9,1831.8,9.85015616]
[1746388387980,0.45927772,1831.9,1831.8,9.85015616]
[1746388388178,6.14,1832.1,1832.0,5.45851528]
[1746388389780,6.14,1832.1,1832.0,8.12287401]
[1746388390682,6.14,1832.1,1832.0,6.24491528]
[1746388392779,6.14,1832.1,1832.0,8.0500726]
[1746388393881,6.14,1832.3,1832.2,5.45791944]
[1746388395382,6.14,1832.3,1832.2,6.26491944]
[1746388396393,6.14,1832.3,1832.2,5.45791944]
[1746388399387,6.60106435,1832.3,1832.2,5.45791944]
[1746388405089,6.60106435,1832.3,1832.1,5.45819928]
[1746388405261,7.26117079,1832.3,1832.1,5.45819928]
[1746388405760,6.14,1832.2,1832.1,5.45819928]
[1746388405960,6.6018411,1832.2,1832.1,5.45819928]
[1746388408461,6.6018411,1832.2,1832.0,5.45841067]
[1746388409395,6.6018411,1832.2,1832.0,5.4582981]
[1746388409890,6.6018411,1832.2,1832.0,10.91659554]
[1746388410092,6.6018411,1832.2,1832.0,5.45829744]
[1746388410297,6.6018411,1832.2,1832.1,5.45821734]
[1746388417706,6.6018411,1832.2,1832.1,8.69620342]
[1746388417914,6.6018411,1832.2,1832.1,9.52740342]
[1746388419403,6.14,1832.2,1832.1,9.52740342]
[1746388419707,6.60162672,1832.2,1832.1,9.52740342]
[1746388420105,0.46162672,1832.2,1832.1,9.52740342]
[1746388420483,6.14,1832.5,1832.4,5.45732372]
[1746388424184,6.14,1832.5,1832.3,9.92645297]
[1746388424387,6.14,1832.5,1832.3,15.38385121]
[1746388424723,6.14,1832.5,1832.4,5.45732372]
[1746388429424,6.60395669,1832.5,1832.4,5.45732372]
[1746388430224,6.60395669,1832.5,1832.3,9.92639824]
[1746388430225,7.33955236,1832.5,1832.3,4.469]
[1746388430394,0.7825,1832.4,1832.3,4.469]
[1746388430900,1.24645669,1832.4,1832.3,4.469]
[1746388434218,1.24645669,1832.4,1832.3,9.92662156]
[1746388434423,1.24645669,1832.4,1832.3,4.469]
[1746388435029,7.38645669,1832.4,1832.3,4.469]
[1746388436228,8.19866193,1832.4,1832.3,4.469]
[1746388438751,8.19866193,1832.4,1832.2,5.45770727]
[1746388440544,8.19866193,1832.4,1832.1,9.92705703]
[1746388440730,6.14,1832.3,1832.1,9.92705703]
[1746388440907,0.46302469,1832.2,1832.1,15.38504127]
[1746388441108,0.46302469,1832.2,1832.1,9.92698424]
[1746388446646,6.60302469,1832.2,1832.1,9.92698424]
[1746388446953,7.40012469,1832.2,1832.1,4.469]
[1746388447659,7.40012469,1832.2,1831.9,5.45864037]
[1746388447822,6.14,1832.1,1831.9,9.92764037]
[1746388448147,6.6005392,1832.1,1831.9,9.92764037]
[1746388448366,6.6005392,1832.1,1831.9,4.469]
[1746388448531,6.6005392,1832.1,1831.9,9.92779321]
[1746388469381,6.6005392,1832.1,1831.9,5.45879321]
[1746388473090,12.87255137,1832.1,1831.8,4.469]
[1746388473255,6.9524,1832.0,1831.8,4.469]
[1746388473586,12.87040895,1832.0,1831.7,4.469]
[1746388474182,12.41103492,1832.0,1831.7,4.469]
[1746388474386,0.45937403,1831.9,1831.7,4.469]
[1746388474700,0.45937403,1831.9,1831.7,9.92834824]
[1746388478906,6.14,1831.8,1831.7,11.80630697]
[1746388479505,6.59937403,1831.8,1831.7,11.80630697]
[1746388481006,6.59937403,1831.8,1831.7,6.34695873]
[1746388482911,6.59937403,1831.8,1831.7,4.469]
[1746388489625,6.59937403,1831.8,1831.7,13.78351258]
[1746388493518,0.45937403,1831.8,1831.7,13.78351258]
[1746388493816,9.80576941,1832.1,1831.9,5.45879446]
[1746388494018,9.80576941,1832.1,1831.9,7.33675319]
[1746388495324,9.80576941,1832.1,1831.8,7.33695371]
[1746388495818,7.66637516,1832.1,1831.8,7.33695371]
[1746388499409,6.14,1832.0,1831.8,7.33695371]
[1746388499908,6.14,1832.0,1831.9,4.469]
[1746388500389,6.14,1832.0,1831.9,10.69261325]
[1746388501304,6.14,1832.0,1831.9,5.2338]
[1746388502226,6.14,1832.0,1831.9,4.469]
[1746388504422,6.60015087,1832.0,1831.9,4.469]
[1746388505507,7.26016596,1832.0,1831.9,4.469]
[1746388506035,13.52748124,1832.0,1831.9,4.469]
[1746388507336,8.06896596,1832.0,1831.9,4.469]
[1746388507640,7.26016596,1832.0,1831.9,4.469]
[1746388514149,6.60015087,1832.0,1831.9,4.469]
[1746388518926,6.60015087,1832.0,1831.9,9.92781325]
[1746388519129,6.60015087,1832.0,1831.9,5.45881325]
[1746388519455,6.60015087,1832.0,1831.9,7.33677198]
[1746388519757,6.60015087,1832.0,1831.9,11.14637198]
[1746388519952,6.60015087,1832.0,1831.9,13.4415929]
[1746388520157,6.60015087,1832.0,1831.9,13.84249965]
[1746388520644,6.60015087,1832.0,1831.9,13.4415929]
[1746388521155,6.60015087,1832.0,1831.9,11.14637198]
[1746388523761,6.60015087,1832.0,1831.9,11.46218827]
[1746388525664,6.60015087,1832.0,1831.9,8.46218827]
[1746388526936,6.60015087,1832.0,1831.9,5.45881325]
[1746388529277,6.60015087,1832.0,1831.8,4.469]
[1746388529571,13.03152834,1831.9,1831.8,4.469]
[1746388529974,13.48965939,1831.9,1831.8,4.469]
[1746388541080,13.48965939,1831.9,1831.6,4.482]
[1746388542282,18.94873272,1831.9,1831.6,4.482]
[1746388543181,13.48965939,1831.9,1831.6,4.482]
[1746388544986,18.94874317,1831.9,1831.6,4.482]
[1746388545486,13.48965939,1831.9,1831.6,4.482]
[1746388545784,13.48965939,1831.9,1831.6,6.04971365]
[1746388546180,18.94875605,1831.9,1831.6,6.04971365]
[1746388546484,13.48965939,1831.9,1831.6,6.04971365]
[1746388549058,6.59813105,1831.9,1831.8,1.56771365]
[1746388551676,6.59813105,1831.9,1831.7,8.44279967]
[1746388552198,6.14,1831.8,1831.7,8.44279967]
[1746388552593,6.59719868,1831.8,1831.7,8.44279967]
[1746388555304,0.45719868,1831.8,1831.7,8.44279967]
[1746388555601,6.14,1832.1,1831.7,8.44279967]
[1746388555602,6.14,1832.1,1832.0,5.45851528]
[1746388555835,6.14,1832.1,1832.0,12.94563276]
[1746388561034,6.14,1832.2,1832.0,18.40414804]
[1746388561707,6.14,1832.2,1832.0,12.94563276]
[1746388562210,6.14,1832.2,1832.0,18.40391234]
[1746388563208,6.14,1832.2,1832.0,12.94539706]
[1746388564395,0.46131593,1832.1,1832.0,12.94539706]
[1746388564695,6.14,1832.2,1832.0,12.94539706]
[1746388564896,0.46131593,1832.1,1832.0,12.94539706]
[1746388565102,6.14,1832.2,1832.0,12.94539706]
[1746388565299,0.46131593,1832.1,1832.0,12.94539706]
[1746388565500,6.14,1832.2,1832.0,12.94539706]
[1746388565698,0.46131593,1832.1,1832.0,12.94539706]
[1746388565898,6.14,1832.2,1832.0,14.7858029]
[1746388566105,0.46131593,1832.1,1832.0,12.94539706]
[1746388566303,6.14,1832.2,1832.0,12.94539706]
[1746388566491,0.46131593,1832.1,1832.0,12.94539706]
[1746388566686,6.14,1832.2,1832.0,12.94539706]
[1746388566687,6.14,1832.2,1832.0,12.13449706]
[1746388566915,0.46131593,1832.1,1832.0,4.482]
[1746388567089,11.59763649,1832.3,1832.0,4.482]
[1746388567418,0.46131593,1832.2,1832.0,4.482]
[1746388569287,6.68997516,1832.2,1832.0,4.482]
[1746388569492,0.7707,1832.0,1831.9,4.475]
[1746388570122,1.23201593,1832.0,1831.9,4.475]
[1746388572726,7.37201593,1832.0,1831.9,4.475]
[1746388573813,6.60131593,1832.0,1831.9,4.475]
[1746388574018,6.60131593,1832.0,1831.9,9.93381325]
[1746388579734,6.60131593,1832.0,1831.9,11.50102185]
[1746388582122,6.60131593,1832.0,1831.9,9.93381325]
[1746388590418,6.60131593,1832.0,1831.9,4.475]
[1746388598158,6.60131593,1832.0,1831.8,11.495121]
[1746388605266,6.60131593,1832.0,1831.8,4.469]
[1746388609691,6.60131593,1832.0,1831.8,11.49515539]
[1746388620087,6.60131593,1832.0,1831.8,6.0362086]
[1746388620385,6.60131593,1832.0,1831.8,4.469]
[1746388620976,7.38711593,1832.0,1831.8,4.469]
[1746388622283,12.84577423,1832.0,1831.8,4.469]
[1746388622593,12.88339067,1831.9,1831.7,4.469]
[1746388622745,0.44773238,1831.8,1831.7,4.469]
[1746388625610,6.58773238,1831.8,1831.7,4.469]
[1746388646629,6.58773238,1831.8,1831.7,6.0362086]
[1746388648230,6.58773238,1831.8,1831.7,4.469]
[1746388648419,6.58773238,1831.8,1831.7,4.4540416]
[1746388650400,6.58773238,1831.8,1831.6,11.49689766]
[1746388650727,6.58773238,1831.8,1831.7,2.3277086]
[1746388655135,6.58773238,1831.8,1831.7,6.7967086]
[1746388656149,6.58773238,1831.8,1831.7,4.469]
[1746388658744,6.58773238,1831.8,1831.7,11.49561789]
[1746388659611,6.58773238,1831.8,1831.7,12.32331789]
[1746388665825,6.58773238,1831.8,1831.7,14.10160548]
[1746388672180,0.44773238,1831.8,1831.7,14.10160548]
[1746388672534,3.66576941,1832.2,1832.0,5.45838629]
[1746388672740,3.66576941,1832.2,1832.0,7.02559489]
[1746388673740,3.66576941,1832.2,1832.0,5.45838629]
[1746388675062,3.66576941,1832.3,1832.0,5.45838629]
[1746388675463,9.80576941,1832.3,1832.0,5.45838629]
[1746388677879,6.14,1832.3,1832.0,5.45838629]
[1746388679196,6.14,1832.3,1832.0,6.78845149]
[1746388680180,6.14,1832.3,1832.1,5.45816206]
[1746388681286,6.14,1832.3,1832.0,8.35560653]
[1746388681780,6.14,1832.3,1832.1,5.45820121]
[1746388682763,6.14,1832.3,1832.0,8.35559258]
[1746388682969,6.14,1832.3,1832.0,8.35557336]
[1746388683168,6.14,1832.3,1832.0,13.81387371]
[1746388683357,6.14,1832.3,1832.0,8.35557336]
[1746388683559,6.14,1832.3,1832.0,8.35555023]
[1746388683768,6.14,1832.3,1832.0,12.48378094]
[1746388684090,6.14,1832.3,1832.0,7.02548503]
[1746388684393,6.14,1832.3,1832.1,5.45821358]
[1746388684547,0.44839001,1832.2,1832.1,5.45821358]
[1746388693789,0.44839001,1832.2,1832.1,9.09581437]
[1746388694171,0.44839001,1832.2,1832.1,13.56281437]
[1746388694561,0.44839001,1832.2,1832.1,12.31442218]
[1746388697289,0.44839001,1832.2,1832.1,11.49242218]
[1746388697879,0.44839001,1832.2,1832.1,4.467]
[1746388698203,1.20459001,1832.2,1832.1,4.467]
[1746388698899,7.34459001,1832.2,1832.1,9.92521734]
[1746388699667,8.07904901,1832.2,1832.1,4.467]
[1746388701283,8.07904901,1832.2,1832.0,5.4583031]
[1746388717722,8.07904901,1832.2,1832.1,5.45821734]
[1746388717910,6.58839001,1832.2,1832.1,7.02542594]
[1746388720302,6.58839001,1832.2,1832.1,7.77942594]
[1746388726596,6.14,1832.2,1832.1,7.77942594]
[1746388726924,6.55211015,1832.2,1832.1,7.77942594]
[1746388727228,6.55211015,1832.2,1832.1,9.10319884]
[1746388728124,0.41211015,1832.2,1832.1,9.10319884]
[1746388728327,6.14,1832.4,1832.3,5.45762156]
[1746388728515,6.14,1832.6,1832.3,9.92362156]
[1746388728694,1.02611015,1832.5,1832.3,9.92362156]
[1746388733032,0.41211015,1832.5,1832.3,9.92362156]
[1746388733934,6.14,1832.4,1832.3,9.92362156]
[1746388734328,6.55203249,1832.4,1832.3,9.92362156]
[1746388735430,6.55203249,1832.4,1832.3,4.466]
[1746388736700,6.55203249,1832.4,1832.3,9.92362156]
[1746388740833,6.55203249,1832.4,1832.3,4.466]
[1746388746551,6.55203249,1832.4,1832.2,9.92373137]
[1746388747253,6.55203249,1832.4,1832.2,10.74921064]
[1746388748646,6.55203249,1832.4,1832.2,4.466]
[1746388748818,7.8297792,1832.4,1832.2,4.466]
[1746388749347,6.55203249,1832.4,1832.2,4.466]
[1746388757152,6.55203249,1832.4,1832.2,9.92389141]
[1746388761266,12.00938079,1832.4,1832.2,4.466]
[1746388761459,6.55203249,1832.4,1832.2,4.466]
[1746388761760,7.28407574,1832.4,1832.2,4.466]
[1746388761962,12.74140592,1832.4,1832.2,4.466]
[1746388762365,7.28407574,1832.4,1832.2,4.466]
[1746388763269,6.14,1832.3,1832.2,4.466]
[1746388763772,6.55071217,1832.3,1832.2,4.466]
[1746388770572,6.55071217,1832.3,1832.1,11.49040494]
[1746388771372,6.55071217,1832.3,1832.1,6.0322086]
[1746388771563,6.55071217,1832.3,1832.1,11.49042169]
[1746388771740,6.55071217,1832.3,1832.1,9.92321309]
[1746388780608,6.55071217,1832.3,1832.1,4.465]
[1746388782810,6.55071217,1832.3,1832.1,9.92320215]
[1746388790420,6.55071217,1832.3,1832.1,9.92304327]
[1746388795417,6.55071217,1832.3,1832.1,9.92321024]
[1746388797935,6.55071217,1832.3,1832.2,5.45791944]
[1746388798115,6.55071217,1832.3,1832.2,6.21891944]
[1746388799329,6.55071217,1832.3,1832.2,0.761]
[1746388799497,6.55071217,1832.3,1832.2,6.21891944]
[1746388801928,6.55071217,1832.3,1832.2,10.68291944]
[1746388802091,6.55071217,1832.3,1832.2,12.63137473]
[1746388804327,6.55071217,1832.3,1832.2,14.19858333]
[1746388807294,6.55071217,1832.3,1832.2,6.41245529]
[1746388807530,6.55071217,1832.3,1832.2,4.464]
[1746388813899,6.55071217,1832.3,1832.2,11.48912804]
[1746388815032,6.55071217,1832.3,1832.2,12.25832804]
[1746388816233,0.41071217,1832.3,1832.2,12.25832804]
[1746388817638,3.68198241,1832.5,1832.3,5.45737804]
[1746388819744,6.14,1832.6,1832.3,5.45737804]
[1746388820412,6.9533,1832.6,1832.3,5.45737804]
[1746388822145,14.01929973,1832.6,1832.2,5.45779358]
[1746388822346,14.01929973,1832.6,1832.4,4.463]
[1746388825142,0.37762541,1832.5,1832.4,4.463]
[1746388827725,6.51762541,1832.5,1832.4,4.463]
[1746388837263,6.51762541,1832.5,1832.4,9.92032372]
[1746388838161,6.51762541,1832.5,1832.4,10.69382372]
[1746388841075,6.51762541,1832.5,1832.4,9.92032372]
[1746388841393,6.51762541,1832.5,1832.4,4.463]
[1746388842359,6.51762541,1832.5,1832.4,9.92032372]
[1746388844480,6.51762541,1832.5,1832.4,4.463]
[1746388845284,7.25158795,1832.5,1832.4,4.463]
[1746388849080,7.25158795,1832.5,1832.2,5.45770998]
[1746388849286,6.51762541,1832.5,1832.3,4.462]
[1746388849489,6.51762541,1832.5,1832.3,9.91957062]
[1746388854905,6.51762541,1832.5,1832.3,4.462]
[1746388857006,6.51762541,1832.5,1832.3,9.91951662]
[1746388857673,6.51762541,1832.5,1832.4,6.28692372]
[1746388857878,6.51762541,1832.5,1832.4,7.91302984]
[1746388858796,6.51762541,1832.5,1832.4,12.37502984]
[1746388863685,6.51762541,1832.5,1832.4,6.91770612]
[1746388863918,6.51762541,1832.5,1832.4,5.2916]
[1746388864115,6.51762541,1832.5,1832.4,4.462]
[1746388870922,6.51762541,1832.5,1832.1,0.8041]
[1746388871091,6.25709637,1832.4,1832.1,4.462]
[1746388871492,0.378871,1832.3,1832.1,4.462]
[1746388872043,0.378871,1832.2,1832.1,4.462]
[1746388872201,8.04251938,1832.4,1832.1,4.462]
[1746388872408,0.378871,1832.3,1832.1,4.462]
[1746388872728,6.25709637,1832.4,1832.1,4.462]
[1746388872942,0.378871,1832.2,1832.1,4.462]
[1746388873244,0.378871,1832.2,1832.1,9.92021734]
[1746388873395,0.7995,1832.4,1832.1,9.92021734]
[1746388873396,12.76209478,1832.5,1832.2,6.26489863]
[1746388873593,0.378871,1832.4,1832.2,6.2647901]
[1746388874319,0.378871,1832.4,1832.3,4.462]
[1746388874701,6.518871,1832.4,1832.3,4.462]
[1746388875443,10.20085341,1832.4,1832.3,4.462]
[1746388879228,6.518871,1832.4,1832.3,4.462]
[1746388885602,6.518871,1832.4,1832.2,4.462]
[1746388885603,5.45762216,1832.3,1832.2,4.462]
[1746388885931,5.82778174,1832.3,1832.0,4.462]
[1746388886528,6.14,1832.2,1832.0,4.462]
[1746388887133,0.37015958,1832.1,1832.0,4.462]
[1746388887433,6.14,1832.2,1832.0,4.462]
[1746388887745,0.37015958,1832.1,1832.0,9.92051528]
[1746388888056,6.14,1832.2,1832.0,10.91256681]
[1746388888351,0.37015958,1832.1,1832.0,10.91256681]
[1746388888762,6.14,1832.2,1832.0,10.91256681]
[1746388888943,0.37015958,1832.1,1832.0,10.91256681]
[1746388889348,6.14,1832.2,1832.0,5.45405153]
[1746388889662,0.37015958,1832.1,1832.0,5.45405153]
[1746388889823,6.14,1832.2,1832.0,5.45405153]
[1746388890026,6.51015958,1832.1,1832.0,4.462]
[1746388896051,6.51015958,1832.1,1832.0,10.71361528]
[1746388896837,6.51015958,1832.1,1832.0,12.90690951]
[1746388897547,6.51015958,1832.1,1832.0,14.74346264]
[1746388898171,0.37015958,1832.1,1832.0,14.74346264]
[1746388898373,9.82198241,1832.4,1832.3,6.25072156]
[1746388898581,10.18763741,1832.4,1832.3,6.25072156]
[1746388902877,6.505655,1832.4,1832.3,6.25072156]
[1746388903199,6.505655,1832.4,1832.3,7.64091508]
[1746388903366,6.505655,1832.4,1832.3,7.65121508]
[1746388904102,0.365655,1832.4,1832.3,7.65121508]
[1746388904469,6.14,1832.8,1832.5,6.2601759]
[1746388904671,0.36775677,1832.7,1832.6,4.461]
[1746388905407,0.36775677,1832.7,1832.6,9.91767765]
[1746388905799,0.36775677,1832.7,1832.6,4.461]
[1746388906103,0.36775677,1832.7,1832.6,9.91772814]
[1746388909592,0.36775677,1832.7,1832.6,10.84820119]
[1746388912280,0.36775677,1832.7,1832.6,4.461]
[1746388918406,0.36775677,1832.7,1832.6,9.91772814]
[1746388918709,0.36775677,1832.7,1832.6,4.461]
[1746388929426,0.36775677,1832.7,1832.6,9.91772814]
[1746388932323,0.36775677,1832.7,1832.6,4.461]
[1746388938516,0.36775677,1832.7,1832.6,9.91772814]
[1746388940004,0.36775677,1832.7,1832.6,4.461]
[1746388949645,0.36775677,1832.7,1832.6,9.91772814]
[1746388950009,0.36775677,1832.7,1832.6,10.70252814]
[1746388955750,0.36775677,1832.7,1832.6,9.91772814]
[1746388956337,0.36775677,1832.7,1832.6,10.72122814]
[1746388956748,0.36775677,1832.7,1832.6,9.91772814]
[1746388960767,0.36775677,1832.7,1832.6,4.461]
[1746388974259,6.50775677,1832.7,1832.6,4.461]
[1746388976879,6.50775677,1832.7,1832.6,9.91772814]
[1746388983357,6.50775677,1832.7,1832.6,11.53367005]
[1746388987285,0.36775677,1832.7,1832.6,13.88048706]
[1746388987786,6.14,1832.9,1832.8,6.23673269]
[1746388988192,6.50646658,1832.9,1832.8,6.23673269]
[1746388988397,6.50646658,1832.9,1832.8,7.40603783]
[1746388988759,6.50646658,1832.9,1832.8,7.46059298]
[1746388988960,6.50646658,1832.9,1832.8,9.02680999]
[1746388989505,3.68198241,1833.0,1832.9,6.23643501]
[1746388989711,3.68198241,1833.0,1832.9,7.80265202]
[1746388989994,3.68198241,1833.0,1832.9,9.65091405]
[1746388990199,4.01791011,1833.0,1832.9,9.65091405]
[1746388990570,4.01791011,1833.0,1832.9,9.245461]
[1746388990765,4.01791011,1833.0,1832.9,9.30001126]
[1746388993272,4.01791011,1833.0,1832.9,12.30001126]
[1746388993567,4.01791011,1833.0,1832.9,12.245461]
[1746388993773,6.14,1833.3,1833.2,7.79115918]
[1746388993994,6.14,1833.3,1833.2,13.57378844]
[1746388994714,6.14,1833.3,1833.2,12.00757143]
[1746388994992,6.14,1833.5,1833.4,5.45434711]
[1746388995196,6.14,1833.6,1833.4,5.45434711]
[1746388996609,6.14,1833.6,1833.4,10.90850008]
[1746388996787,6.14,1833.6,1833.4,5.45415297]
[1746388997968,6.14,1833.6,1833.4,5.45411775]
[1746388998174,6.14,1833.6,1833.5,5.45404963]
[1746388999465,6.14,1833.6,1833.4,5.45426477]
[1746388999999,6.14,1833.6,1833.3,5.45448604]
[1746389001409,0.31221247,1833.5,1833.3,7.35729999]
[1746389001819,0.31221247,1833.5,1833.3,12.81171929]
[1746389002178,0.31221247,1833.5,1833.3,7.35723325]
[1746389004329,0.31221247,1833.5,1833.3,12.81164405]
[1746389004824,0.31221247,1833.5,1833.4,5.45434711]
[1746389005879,0.31221247,1833.5,1833.3,7.35722475]
[1746389006515,0.31221247,1833.5,1833.4,5.45434711]
[1746389007387,0.31221247,1833.5,1833.3,7.35727937]
[1746389008048,0.31221247,1833.5,1833.4,0.73572794]
[1746389009935,0.31221247,1833.5,1833.4,5.19272794]
[1746389012945,0.31221247,1833.5,1833.4,10.64707505]
[1746389017733,6.14,1833.6,1833.4,10.64707505]
[1746389017937,0.31716994,1833.5,1833.4,10.64707505]
[1746389020375,0.31716994,1833.5,1833.4,9.91134711]
[1746389023155,0.31716994,1833.5,1833.4,12.28870315]
[1746389023355,6.14,1833.7,1833.6,5.45375218]
[1746389023604,6.4567812,1833.7,1833.6,5.45375218]
[1746389027113,0.3167812,1833.7,1833.6,5.45375218]
[1746389027265,0.3167812,1833.7,1833.6,6.59906099]
[1746389027596,6.14,1833.9,1833.8,5.45315737]
[1746389027800,6.14,1834.0,1833.9,5.45286002]
[1746389029498,6.14,1834.0,1833.8,9.9090492]
[1746389030096,6.14,1834.0,1833.8,9.8610492]
[1746389035200,0.29363756,1833.9,1833.8,9.8610492]
[1746389037595,0.29363756,1833.9,1833.8,4.408]
[1746389038911,0.29363756,1833.9,1833.8,9.86115737]
[1746389039916,0.29363756,1833.9,1833.8,10.64625737]
[1746389040583,0.29363756,1833.9,1833.8,10.62587441]
[1746389045316,0.29363756,1833.9,1833.8,9.84077441]